fUST/lending_fUST_20250512
["ID","MTS","AMOUNT","RATE_DAILY","PERIOD"]
[360770224,1747000244667,-500.0,0.00027107,10]
[360770225,1747000244676,-500.0,0.00027107,10]
[360770226,1747000244686,-500.0,0.00027107,10]
[360770227,1747000244695,-500.0,0.00027107,10]
[360770228,1747000244705,-500.0,0.00027107,10]
[360770229,1747000244715,-500.0,0.00027107,10]
[360770230,1747000244725,-500.0,0.00027107,10]
[360770231,1747000244734,-500.0,0.00027107,10]
[360770232,1747000244743,-500.0,0.00027107,10]
[360770233,1747000244752,-500.0,0.00027107,10]
[360770234,1747000244762,-293.85068442,0.00027107,10]
[360770235,1747000244771,-502.76189399,0.00027107,10]
[360770236,1747000244784,-900.0,0.00027107,10]
[360770237,1747000244793,-900.0,0.00027107,10]
[360770238,1747000244803,-900.0,0.00027107,10]
[360770239,1747000244814,-900.0,0.00027107,10]
[360770240,1747000244823,-900.0,0.00027107,10]
[360770241,1747000244833,-900.0,0.00027107,10]
[360770242,1747000244842,-900.0,0.00027107,10]
[360770243,1747000244852,-900.0,0.00027107,10]
[360770244,1747000244862,-166.23275869,0.00027107,10]
[360770245,1747000244871,-900.0,0.00027107,10]
[360770246,1747000244881,-997.71092301,0.00027107,10]
[360770247,1747000244890,-509.98091602,0.00027107,10]
[360770248,1747000244899,-500.0,0.00027107,10]
[360770249,1747000244910,-429.5248757,0.00027107,10]
[360770250,1747000244919,-500.0,0.00027107,10]
[360770251,1747000244929,-900.0,0.00027107,10]
[360770252,1747000244938,-900.0,0.00027107,10]
[360770253,1747000244947,-900.0,0.00027107,10]
[360770254,1747000244957,-900.0,0.00027107,10]
[360770255,1747000244966,-500.0,0.00027107,10]
[360770256,1747000244975,-500.06610038,0.00027107,10]
[360770257,1747000244985,-900.0,0.00027107,10]
[360770258,1747000244994,-500.0,0.000272,2]
[360770259,1747000245003,-500.0,0.000272,2]
[360770260,1747000245012,-500.0,0.000272,2]
[360770261,1747000245022,-300.0,0.000272,2]
[360770262,1747000245031,-514.4506736,0.000272,2]
[360770263,1747000245040,-500.0,0.000272,2]
[360770264,1747000245049,-500.0,0.000272,2]
[360770265,1747000245058,-625.33112192,0.000272,2]
[360770266,1747000245068,-500.0,0.000272,2]
[360770267,1747000245077,-500.0,0.000272,2]
[360770268,1747000245086,-500.0,0.000272,2]
[360770269,1747000245095,-500.0,0.000272,2]
[360770270,1747000245104,-500.0,0.000272,2]
[360770271,1747000245113,-500.0,0.000272,2]
[360770272,1747000245122,-500.83292235,0.000272,2]
[360770273,1747000245131,-500.0,0.000272,2]
[360770274,1747000245140,-524.30265086,0.000272,2]
[360770275,1747000245149,-531.6458299,0.000272,2]
[360770276,1747000245158,-500.0,0.000272,2]
[360770277,1747000245167,-500.0,0.000272,2]
[360770278,1747000245176,-500.0,0.000272,2]
[360770279,1747000245186,-500.0,0.000272,2]
[360770280,1747000245195,-500.0,0.000272,2]
[360770281,1747000245204,-588.55758085,0.000272,2]
[360770282,1747000245214,-500.0,0.000272,2]
[360770283,1747000245223,-500.0,0.00027397,2]
[360770284,1747000245232,-500.0,0.00027397,2]
[360770285,1747000245242,-617.9677113,0.00027397,2]
[360770286,1747000245251,-400.0,0.00027397,2]
[360770287,1747000245261,-400.0,0.00027397,2]
[360770288,1747000245270,-400.0,0.00027397,2]
[360770289,1747000245280,-400.0,0.00027397,2]
[360770290,1747000245289,-516.02,0.00027397,2]
[360770291,1747000245299,-450.0,0.00027397,5]
[360770292,1747000245308,-270.0,0.00027397,2]
[360770293,1747000245318,-500.0,0.00027397,5]
[360770294,1747000245327,-190.83359276,0.00027616,2]
[360770295,1747000245336,-392.47151,0.000282,120]
[360770296,1747000245346,-238.05607,0.000282,120]
[360770297,1747000245355,-500.0,0.00028246,2]
[360770298,1747000245365,-562.0,0.00028246,2]
[360770299,1747000245375,-500.0,0.00028273,2]
[360770300,1747000245385,-562.0,0.00028273,2]
[360770301,1747000245394,-151.0,0.000283,11]
[360770302,1747000245403,-264.19140514,0.00028301,2]
[360770303,1747000245413,-562.0,0.00028301,2]
[360770304,1747000245423,-562.0,0.00028328,2]
[360770305,1747000245432,-562.0,0.00028356,2]
[360770306,1747000245442,-562.0,0.00028383,2]
[360770307,1747000245452,-562.0,0.0002841,2]
[360770308,1747000245462,-562.0,0.00028438,2]
[360770309,1747000245470,-562.0,0.00028465,2]
[360770310,1747000245480,-562.0,0.00028493,2]
[360770311,1747000245489,-562.0,0.0002852,2]
[360770312,1747000245498,-1257.93091182,0.00028527,2]
[360770313,1747000245508,-546.0,0.00028528,2]
[360770314,1747000245517,-706.0,0.00028528,2]
[360770315,1747000245527,-2242.0,0.00028528,2]
[360770316,1747000245536,-562.0,0.00028547,2]
[360770317,1747000245548,-562.0,0.00028575,2]
[360770318,1747000245560,-562.0,0.00028602,2]
[360770319,1747000245569,-562.0,0.0002863,2]
[360770320,1747000245579,-562.0,0.00028657,2]
[360770321,1747000245588,-562.0,0.00028684,2]
[360770322,1747000245598,-562.0,0.00028712,2]
[360770323,1747000245608,-562.0,0.00028739,2]
[360770324,1747000245617,-562.0,0.00028767,2]
[360770325,1747000245628,-562.0,0.00028794,2]
[360770326,1747000245637,-562.0,0.00028821,2]
[360770327,1747000245647,-600.0,0.00028844,5]
[360770328,1747000245656,-562.0,0.00028849,2]
[360770329,1747000245665,-15608.1115296,0.0002886,2]
[360770330,1747000245676,-4000.0,0.0002887,2]
[360770331,1747000245686,-569.17949005,0.00028876,2]
[360770332,1747000245695,-151.0,0.00028953,7]
[360770333,1747000245705,-151.0,0.00028953,7]
[360770334,1747000245715,-243.941146,0.00028953,7]
[360770335,1747000245724,-500.0,0.00028973,5]
[360770336,1747000245733,-500.0,0.00028973,5]
[360770337,1747000245743,-287.11414161,0.00029,7]
[360770338,1747000245752,-287.11414161,0.00029,7]
[360770339,1747000245761,-160.0,0.00029,3]
[360770340,1747000245772,-997.71092301,0.00029,3]
[360770341,1747000245781,-160.0,0.00029,3]
[360770342,1747000245790,-255.52587066,0.00029096,7]
[360770343,1747000245800,-151.0,0.00029104,7]
[360770344,1747000245809,-151.0,0.00029104,7]
[360770345,1747000245818,-238.395,0.00029143,2]
[360770346,1747000245828,-160.0,0.00029143,2]
[360770347,1747000245837,-151.0,0.00029144,7]
[360770348,1747000245847,-186.649042,0.00029144,7]
[360770349,1747000245856,-257.676636,0.00029253,7]
[360770350,1747000245865,-257.676636,0.00029253,7]
[360770351,1747000245875,-151.0,0.00029253,7]
[360770352,1747000245884,-151.0,0.00029253,7]
[360770353,1747000245894,-325.305349,0.00029253,7]
[360770354,1747000245904,-325.305349,0.00029253,7]
[360770355,1747000245914,-151.0,0.00029253,7]
[360770356,1747000245923,-151.0,0.00029253,7]
[360770357,1747000245933,-15608.1115296,0.00029286,2]
[360770358,1747000245942,-154.318293,0.00029324,7]
[360770359,1747000245951,-151.0,0.00029324,7]
[360770360,1747000245961,-151.0,0.00029324,7]
[360770361,1747000245970,-151.0,0.00029324,7]
[360770362,1747000245979,-151.0,0.00029324,7]
[360770363,1747000245989,-202.422819,0.00029324,7]
[360770364,1747000245998,-202.422819,0.00029324,7]
[360770365,1747000246008,-834.706368,0.00029324,7]
[360770366,1747000246017,-834.706368,0.00029324,7]
[360770367,1747000246026,-151.0,0.00029324,7]
[360770368,1747000246035,-311.773812,0.00029333,7]
[360770369,1747000246044,-311.773812,0.00029333,7]
[360770370,1747000246054,-151.0,0.00029333,7]
[360770371,1747000246063,-151.0,0.00029333,7]
[360770373,1747000246072,-262.152705,0.00029344,7]
[360770375,1747000246082,-151.0,0.00029344,7]
[360770376,1747000246091,-262.152705,0.00029344,7]
[360770377,1747000246100,-311.773812,0.00029344,7]
[360770378,1747000246109,-311.773812,0.00029344,7]
[360770379,1747000246119,-151.0,0.00029344,7]
[360770381,1747000246128,-151.0,0.00029344,7]
[360770382,1747000246137,-392.47151,0.000294,120]
[360770383,1747000246147,-160.0,0.000294,7]
[360770384,1747000246156,-160.0,0.000294,3]
[360770385,1747000246165,-238.05607,0.000294,120]
[360770386,1747000246175,-151.0,0.00029407,7]
[360770387,1747000246184,-151.0,0.00029407,7]
[360770388,1747000246193,-151.0,0.00029407,7]
[360770389,1747000246203,-151.0,0.00029407,7]
[360770390,1747000246212,-202.422819,0.00029407,7]
[360770391,1747000246222,-202.422819,0.00029407,7]
[360770392,1747000246231,-834.706368,0.00029407,7]
[360770393,1747000246240,-834.706368,0.00029407,7]
[360770394,1747000246250,-151.0,0.00029407,7]
[360770395,1747000246259,-262.152705,0.00029417,7]
[360770396,1747000246268,-151.0,0.00029417,7]
[360770397,1747000246278,-262.152705,0.00029417,7]
[360770398,1747000246288,-151.0,0.00029417,7]
[360770399,1747000246297,-151.0,0.00029417,7]
[360770400,1747000246306,-151.0,0.00029417,7]
[360770401,1747000246315,-151.0,0.00029417,7]
[360770402,1747000246325,-202.422819,0.00029417,7]
[360770403,1747000246334,-202.422819,0.00029417,7]
[360770404,1747000246343,-834.706368,0.00029417,7]
[360770405,1747000246352,-834.706368,0.00029417,7]
[360770406,1747000246362,-311.773812,0.00029417,7]
[360770407,1747000246371,-311.773812,0.00029417,7]
[360770408,1747000246380,-151.0,0.00029417,7]
[360770409,1747000246389,-151.0,0.00029417,7]
[360770410,1747000246400,-151.0,0.00029417,7]
[360770411,1747000246409,-320.686757,0.00029452,2]
[360770412,1747000246418,-364.03552813,0.00029452,5]
[360770413,1747000246428,-1000.0,0.00029452,5]
[360770414,1747000246438,-262.152705,0.00029453,7]
[360770415,1747000246447,-151.0,0.00029453,7]
[360770416,1747000246457,-262.152705,0.00029453,7]
[360770417,1747000246466,-311.773812,0.00029453,7]
[360770418,1747000246476,-311.773812,0.00029453,7]
[360770419,1747000246485,-151.0,0.00029453,7]
[360770420,1747000246494,-151.0,0.00029453,7]
[360770421,1747000246504,-262.152705,0.00029462,7]
[360770422,1747000246513,-151.0,0.00029462,7]
[360770423,1747000246522,-262.152705,0.00029462,7]
[360770424,1747000246532,-311.773812,0.00029462,7]
[360770425,1747000246541,-311.773812,0.00029462,7]
[360770426,1747000246552,-151.0,0.00029462,7]
[360770427,1747000246561,-151.0,0.00029462,7]
[360770428,1747000246571,-151.0,0.00029462,7]
[360770429,1747000246580,-151.0,0.00029473,7]
[360770430,1747000246590,-257.676636,0.00029517,7]
[360770431,1747000246599,-257.676636,0.00029517,7]
[360770432,1747000246608,-151.0,0.00029517,7]
[360770433,1747000246618,-151.0,0.00029517,7]
[360770434,1747000246628,-325.305349,0.00029517,7]
[360770435,1747000246638,-325.305349,0.00029517,7]
[360770436,1747000246647,-151.0,0.00029517,7]
[360770437,1747000246657,-151.0,0.00029517,7]
[360770438,1747000246667,-747.52,0.000296,7]
[360770439,1747000246678,-262.152705,0.0002969,7]
[360770440,1747000246688,-213.935366,0.0002969,7]
[360770441,1747000246697,-262.152705,0.0002969,7]
[360770442,1747000246706,-311.773812,0.0002969,7]
[360770443,1747000246716,-311.773812,0.0002969,7]
[360770444,1747000246725,-151.0,0.0002969,7]
[360770445,1747000246735,-226.904116,0.0002969,7]
[360770446,1747000246745,-257.676636,0.000297,7]
[360770447,1747000246756,-257.676636,0.000297,7]
[360770448,1747000246765,-151.0,0.000297,7]
[360770449,1747000246775,-151.0,0.000297,7]
[360770450,1747000246784,-151.0,0.000297,7]
[360770451,1747000246794,-151.0,0.000297,7]
[360770452,1747000246803,-325.305349,0.000297,7]
[360770453,1747000246812,-325.305349,0.000297,7]
[360770454,1747000246822,-151.0,0.000297,7]
[360770455,1747000246832,-158.592897,0.000297,7]
[360770457,1747000246841,-151.0,0.000297,7]
[360770458,1747000246850,-151.0,0.000297,7]
[360770459,1747000246860,-164.827724,0.000297,7]
[360770460,1747000246869,-202.422819,0.000297,7]
[360770461,1747000246879,-202.422819,0.000297,7]
[360770462,1747000246888,-834.706368,0.000297,7]
[360770463,1747000246897,-834.706368,0.000297,7]
[360770464,1747000246907,-151.0,0.00029753,7]
[360770465,1747000247042,-15608.1115296,0.00029831,2]
[360770466,1747000247054,-262.152705,0.00029841,7]
[360770467,1747000247063,-262.152705,0.00029841,7]
[360770468,1747000247073,-311.773812,0.00029841,7]
[360770470,1747000247082,-311.773812,0.00029841,7]
[360770472,1747000247092,-151.0,0.00029841,7]
[360770474,1747000247101,-262.152705,0.0002985,7]
[360770476,1747000247111,-262.152705,0.0002985,7]
[360770478,1747000247121,-311.773812,0.0002985,7]
[360770479,1747000247131,-311.773812,0.0002985,7]
[360770480,1747000247141,-151.0,0.0002985,7]
[360770481,1747000247150,-257.676636,0.0002986,7]
[360770482,1747000247160,-257.676636,0.0002986,7]
[360770483,1747000247170,-151.0,0.0002986,7]
[360770484,1747000247180,-228.984425,0.0002986,7]
[360770485,1747000247189,-151.0,0.0002986,7]
[360770486,1747000247200,-325.305349,0.0002986,7]
[360770487,1747000247210,-325.305349,0.0002986,7]
[360770488,1747000247219,-151.0,0.0002986,7]
[360770489,1747000247229,-25053.4999866,0.0002987,2]
[360770490,1747000247239,-257.676636,0.0002987,7]
[360770491,1747000247248,-257.676636,0.0002987,7]
[360770492,1747000247258,-151.0,0.0002987,7]
[360770493,1747000247268,-151.0,0.0002987,7]
[360770494,1747000247278,-325.305349,0.0002987,7]
[360770495,1747000247288,-325.305349,0.0002987,7]
[360770496,1747000247297,-151.0,0.0002987,7]
[360770497,1747000247307,-151.0,0.0002987,7]
[360770498,1747000247316,-151.0,0.0002987,7]
[360770499,1747000247326,-202.422819,0.0002987,7]
[360770500,1747000247337,-202.422819,0.0002987,7]
[360770501,1747000247347,-834.706368,0.0002987,7]
[360770502,1747000247356,-834.706368,0.0002987,7]
[360770503,1747000247367,-311.773812,0.0002987,7]
[360770504,1747000247376,-311.773812,0.0002987,7]
[360770505,1747000247386,-151.0,0.0002987,7]
[360770506,1747000247396,-151.0,0.0002987,7]
[360770507,1747000247406,-150.0,0.00029873,5]
[360770508,1747000247415,-262.152705,0.00029873,7]
[360770509,1747000247426,-262.152705,0.00029873,7]
[360770510,1747000247439,-500.0,0.00029973,5]
[360770511,1747000247449,-500.0,0.00029973,5]
[360770512,1747000247459,-15608.1115296,0.0002998,2]
[360770513,1747000247469,-151.0,0.0002999,7]
[360770514,1747000247479,-151.0,0.0002999,7]
[360770515,1747000247490,-262.152705,0.0002999,7]
[360770516,1747000247500,-262.152705,0.0002999,7]
[360770517,1747000247510,-311.773812,0.0002999,7]
[360770518,1747000247519,-311.773817,0.0002999,7]
[360770519,1747000247529,-151.0,0.0002999,7]
[360770520,1747000247539,-151.0,0.0002999,7]
[360770521,1747000247549,-15608.1115296,0.0002999,2]
[360770522,1747000247560,-1114.0,0.0003,2]
[360770523,1747000247570,-42211.99845524,0.0003,2]
[360770524,1747000247580,-191.5275,0.0003,2]
[360770525,1747000247591,-151.0,0.0003,7]
[360770526,1747000247601,-151.0,0.0003,7]
[360770527,1747000247610,-151.0,0.0003,7]
[360770528,1747000247620,-151.0,0.0003,7]
[360770529,1747000247632,-151.0,0.0003,7]
[360770530,1747000247643,-257.676636,0.0003,7]
[360770531,1747000247653,-257.676636,0.0003,7]
[360770532,1747000247663,-151.0,0.0003,7]
[360770533,1747000247673,-151.0,0.0003,7]
[360770534,1747000247683,-325.305349,0.0003,7]
[360770535,1747000247692,-325.305349,0.0003,7]
[360770536,1747000247702,-151.0,0.0003,7]
[360770537,1747000247712,-151.0,0.0003,7]
[360770538,1747000247722,-262.152705,0.0003,7]
[360770539,1747000247732,-262.1527,0.0003,7]
[360770540,1747000247745,-151.0,0.0003,7]
[360770541,1747000247758,-151.0,0.0003,14]
[360770542,1747000247768,-245.084646,0.0003,7]
[360770543,1747000247778,-167.58675,0.0003,2]
[360770544,1747000247788,-1500.0,0.0003,28]
[360770545,1747000247798,-1500.0,0.0003,28]
[360770546,1747000247808,-1500.0,0.0003,28]
[360770547,1747000247817,-1500.0,0.0003,28]
[360770548,1747000247827,-1500.0,0.0003,28]
[360770549,1747000247836,-1500.0,0.0003,28]
[360770550,1747000247846,-1500.0,0.0003,28]
[360770551,1747000247856,-1500.0,0.0003,28]
[360770552,1747000247866,-1500.0,0.0003,28]
[360770553,1747000247876,-1500.0,0.0003,28]
[360770554,1747000247886,-1500.0,0.0003,28]
[360770555,1747000247895,-1500.0,0.0003,28]
[360770556,1747000247905,-1500.0,0.0003,28]
[360770557,1747000247914,-1500.0,0.0003,28]
[360770558,1747000247924,-910.887751,0.0003,28]
[360770559,1747000247934,-202.422819,0.0003,7]
[360770560,1747000247944,-202.422819,0.0003,7]
[360770561,1747000247953,-834.706368,0.0003,7]
[360770562,1747000247963,-834.706368,0.0003,7]
[360770563,1747000247972,-160.0,0.0003,7]
[360770564,1747000247981,-997.71092301,0.0003,7]
[360770565,1747000247991,-274.0,0.0003,2]
[360770566,1747000248002,-2000.0,0.0003,4]
[360770567,1747000248012,-257.676636,0.00030025,7]
[360770568,1747000248021,-257.676636,0.00030025,7]
[360770569,1747000248030,-325.305349,0.00030025,7]
[360770570,1747000248040,-325.305349,0.00030025,7]
[360770571,1747000248052,-151.0,0.00030025,7]
[360770572,1747000248062,-15608.1115296,0.00030131,2]
[360770573,1747000248074,-700.0,0.00030136,120]
[360770574,1747000248090,-765.41921397,0.00030136,120]
[360770575,1747000248100,-400.0,0.00030137,60]
[360770576,1747000248111,-600.0,0.00030137,5]
[360770577,1747000248121,-834.706368,0.00030137,7]
[360770578,1747000248131,-834.706368,0.00030137,7]
[360770579,1747000248141,-151.0,0.00030141,7]
[360770580,1747000248150,-202.422819,0.00030141,7]
[360770581,1747000248160,-202.422819,0.00030141,7]
[360770582,1747000248170,-1897.14127043,0.00030185,2]
[360770583,1747000248180,-539.66005491,0.00030352,5]
[360770584,1747000248190,-1000.0,0.00030352,5]
[360770585,1747000248200,-1000.0,0.00030352,5]
[360770586,1747000248210,-1000.0,0.00030352,5]
[360770587,1747000248220,-1000.0,0.00030352,5]
[360770588,1747000248230,-500.0,0.00030352,5]
[360770589,1747000248240,-500.0,0.00030352,5]
[360770590,1747000248250,-1000.0,0.00030452,5]
[360770591,1747000248259,-1000.0,0.00030452,5]
[360770592,1747000248269,-1000.0,0.00030452,5]
[360770593,1747000248279,-500.0,0.00030452,5]
[360770594,1747000248289,-1000.0,0.00030452,5]
[360770595,1747000248299,-151.0,0.00030453,7]
[360770596,1747000248310,-900.0,0.00030488,5]
[360770597,1747000248320,-160.0,0.00030513,2]
[360770598,1747000248331,-367.10469081,0.00030575,21]
[360770599,1747000248341,-392.47151,0.000306,120]
[360770600,1747000248352,-238.05607,0.000306,120]
[360770601,1747000248362,-151.0,0.0003069,7]
[360770602,1747000248372,-181.062655,0.0003069,7]
[360770603,1747000248382,-181.062655,0.0003069,7]
[360770604,1747000248392,-151.0,0.0003069,7]
[360770605,1747000248402,-15608.1115296,0.0003086,2]
[360770606,1747000248412,-8581.40032092,0.0003087,2]
[360770607,1747000248422,-257.676636,0.0003087,7]
[360770608,1747000248433,-257.676636,0.0003087,7]
[360770609,1747000248443,-325.305349,0.0003087,7]
[360770610,1747000248456,-325.305349,0.0003087,7]
[360770611,1747000248467,-151.0,0.0003087,7]
[360770612,1747000248477,-292.389625,0.0003087,7]
[360770613,1747000248487,-202.422819,0.0003087,7]
[360770614,1747000248496,-202.422819,0.0003087,7]
[360770615,1747000248506,-834.706368,0.0003087,7]
[360770616,1747000248516,-834.706368,0.0003087,7]
[360770617,1747000248526,-153.0,0.00030891,2]
[360770618,1747000248535,-153.0,0.00030891,2]
[360770619,1747000248544,-153.0,0.00030891,2]
[360770620,1747000248559,-153.0,0.00030891,2]
[360770621,1747000248569,-153.0,0.00030891,2]
[360770622,1747000248578,-153.0,0.00030891,2]
[360770623,1747000248587,-153.0,0.00030891,2]
[360770624,1747000248597,-153.0,0.00030891,2]
[360770625,1747000248607,-153.0,0.00030891,2]
[360770626,1747000248617,-153.0,0.00030891,2]
[360770627,1747000248627,-153.0,0.00030891,2]
[360770628,1747000248636,-153.0,0.00030891,2]
[360770629,1747000248646,-153.0,0.00030891,2]
[360770630,1747000248656,-153.0,0.00030891,2]
[360770631,1747000248666,-153.0,0.00030891,2]
[360770632,1747000248676,-153.0,0.00030891,2]
[360770633,1747000248685,-153.0,0.00030891,2]
[360770634,1747000248695,-153.0,0.00030891,2]
[360770635,1747000248704,-153.0,0.00030891,2]
[360770636,1747000248714,-153.0,0.00030891,2]
[360770637,1747000248724,-153.0,0.00030891,2]
[360770638,1747000248733,-153.0,0.00030891,2]
[360770639,1747000248743,-153.0,0.00030891,2]
[360770640,1747000248752,-153.0,0.00030891,2]
[360770641,1747000248762,-153.0,0.00030891,2]
[360770642,1747000248771,-153.0,0.00030891,2]
[360770643,1747000248781,-153.0,0.00030891,2]
[360770644,1747000248790,-153.0,0.00030891,2]
[360770645,1747000248801,-153.0,0.00030891,2]
[360770646,1747000248810,-153.0,0.00030891,2]
[360770647,1747000248820,-153.0,0.00030891,2]
[360770648,1747000248830,-153.0,0.00030891,2]
[360770649,1747000248839,-153.0,0.00030891,2]
[360770650,1747000248849,-153.0,0.00030891,2]
[360770651,1747000248859,-153.0,0.00030891,2]
[360770652,1747000248869,-153.0,0.00030891,2]
[360770653,1747000248878,-153.0,0.00030891,2]
[360770654,1747000248887,-153.0,0.00030891,2]
[360770655,1747000248897,-153.0,0.00030891,2]
[360770656,1747000248907,-153.0,0.00030891,2]
[360770657,1747000248916,-153.0,0.00030891,2]
[360770658,1747000248926,-153.0,0.00030891,2]
[360770659,1747000248936,-153.0,0.00030891,2]
[360770660,1747000248946,-153.0,0.00030891,2]
[360770661,1747000248956,-153.0,0.00030891,2]
[360770662,1747000248966,-153.0,0.00030891,2]
[360770663,1747000248975,-153.0,0.00030891,2]
[360770664,1747000248984,-153.0,0.00030891,2]
[360770665,1747000248994,-153.0,0.00030891,2]
[360770666,1747000249003,-153.0,0.00030891,2]
[360770667,1747000249013,-153.0,0.00030891,2]
[360770668,1747000249022,-153.0,0.00030891,2]
[360770669,1747000249032,-153.0,0.00030891,2]
[360770670,1747000249041,-153.0,0.00030891,2]
[360770671,1747000249050,-153.0,0.00030891,2]
[360770672,1747000249059,-153.0,0.00030891,2]
[360770673,1747000249068,-153.0,0.00030891,2]
[360770674,1747000249078,-153.0,0.00030891,2]
[360770675,1747000249087,-153.0,0.00030891,2]
[360770676,1747000249097,-11667.0,0.00031,3]
[360770677,1747000249107,-422.1676983,0.00031,3]
[360770678,1747000249118,-160.0,0.00031,3]
[360770679,1747000249128,-160.0,0.00031,7]
[360770680,1747000249138,-2000.0,0.00031,4]
[360770681,1747000249147,-15608.1115296,0.00031128,2]
[360770682,1747000249157,-153.0,0.00031138,2]
[360770683,1747000249167,-153.0,0.00031138,2]
[360770684,1747000249176,-153.0,0.00031138,2]
[360770685,1747000249186,-153.0,0.00031138,2]
[360770686,1747000249196,-153.0,0.00031138,2]
[360770687,1747000249206,-153.0,0.00031138,2]
[360770688,1747000249216,-153.0,0.00031138,2]
[360770689,1747000249225,-153.0,0.00031138,2]
[360770690,1747000249235,-153.0,0.00031138,2]
[360770691,1747000249245,-153.0,0.00031138,2]
[360770692,1747000249255,-153.0,0.00031138,2]
[360770693,1747000249265,-153.0,0.00031138,2]
[360770694,1747000249275,-153.0,0.00031138,2]
[360770695,1747000249284,-153.0,0.00031138,2]
[360770696,1747000249294,-153.0,0.00031138,2]
[360770697,1747000249303,-153.0,0.00031138,2]
[360770698,1747000249313,-153.0,0.00031138,2]
[360770699,1747000249322,-153.0,0.00031138,2]
[360770700,1747000249332,-153.0,0.00031138,2]
[360770701,1747000249342,-153.0,0.00031138,2]
[360770702,1747000249352,-153.0,0.00031138,2]
[360770703,1747000249361,-153.0,0.00031138,2]
[360770704,1747000249371,-153.0,0.00031138,2]
[360770705,1747000249381,-153.0,0.00031138,2]
[360770706,1747000249390,-153.0,0.00031138,2]
[360770707,1747000249400,-153.0,0.00031138,2]
[360770708,1747000249409,-153.0,0.00031138,2]
[360770709,1747000249419,-153.0,0.00031138,2]
[360770710,1747000249430,-153.0,0.00031138,2]
[360770711,1747000249440,-153.0,0.00031138,2]
[360770712,1747000249450,-153.0,0.00031138,2]
[360770713,1747000249459,-153.0,0.00031138,2]
[360770714,1747000249469,-153.0,0.00031138,2]
[360770715,1747000249479,-153.0,0.00031138,2]
[360770716,1747000249488,-153.0,0.00031138,2]
[360770717,1747000249532,-153.0,0.00031138,2]
[360770718,1747000249542,-153.0,0.00031138,2]
[360770719,1747000249554,-153.0,0.00031138,2]
[360770720,1747000249563,-153.0,0.00031138,2]
[360770721,1747000249573,-153.0,0.00031138,2]
[360770722,1747000249585,-153.0,0.00031138,2]
[360770723,1747000249596,-153.0,0.00031138,2]
[360770724,1747000249606,-153.0,0.00031138,2]
[360770725,1747000249616,-153.0,0.00031138,2]
[360770726,1747000249626,-153.0,0.00031138,2]
[360770727,1747000249635,-153.0,0.00031138,2]
[360770728,1747000249645,-153.0,0.00031138,2]
[360770729,1747000249654,-153.0,0.00031138,2]
[360770730,1747000249663,-153.0,0.00031138,2]
[360770731,1747000249673,-153.0,0.00031138,2]
[360770732,1747000249683,-153.0,0.00031138,2]